bitfinex/quotes_BTCUSD_20250412
["timestamp","ask_amount","ask_price","bid_price","bid_amount"]
[1744498986637,0.35454085,85310.0,85309.0,0.00046965]
[1744498986838,0.47538239,85310.0,85309.0,0.00046965]
[1744498988215,0.47938239,85310.0,85309.0,0.00046965]
[1744498988938,0.48138239,85310.0,85309.0,0.00046965]
[1744498989386,0.47938239,85310.0,85309.0,0.00046965]
[1744498989662,0.47938239,85310.0,85309.0,6.5e-07]
[1744498989910,0.48238239,85310.0,85309.0,6.5e-07]
[1744498990410,0.89288239,85310.0,85309.0,6.5e-07]
[1744498990830,0.89388239,85310.0,85309.0,6.5e-07]
[1744498991177,0.90088239,85310.0,85309.0,6.5e-07]
[1744498996055,2.10764239,85310.0,85309.0,6.5e-07]
[1744498998160,2.12938558,85310.0,85309.0,6.5e-07]
[1744498998357,0.24898785,85307.0,85306.0,7.5e-07]
[1744498998563,0.36982939,85307.0,85306.0,0.0001407]
[1744498998775,0.39157258,85307.0,85306.0,0.0001407]
[1744498999346,0.36982939,85307.0,85306.0,0.0001407]
[1744498999604,0.37682939,85307.0,85306.0,0.0001407]
[1744499000375,0.39856936,85307.0,85306.0,0.0001407]
[1744499000735,0.40856936,85307.0,85306.0,0.0001407]
[1744499000877,0.38682939,85307.0,85306.0,0.0001407]
[1744499001595,0.71228854,85307.0,85306.0,0.0001407]
[1744499001803,0.82844084,85307.0,85306.0,0.0001407]
[1744499002541,0.72682939,85307.0,85306.0,0.0001407]
[1744499007844,0.72682939,85307.0,85306.0,7e-07]
[1744499008017,1.14032939,85307.0,85306.0,7e-07]
[1744499012169,0.01454085,85300.0,85289.0,5e-07]
[1744499012368,0.70987639,85290.0,85289.0,5e-07]
[1744499012587,0.84347639,85290.0,85289.0,5e-07]
[1744499014576,0.84847639,85290.0,85289.0,5e-07]
[1744499015419,0.85247639,85290.0,85289.0,5e-07]
[1744499016737,0.60348154,85290.0,85289.0,5e-07]
[1744499016939,0.60348154,85290.0,85289.0,0.0497005]
[1744499017284,0.83797554,85290.0,85289.0,0.0497005]
[1744499018241,0.85973052,85290.0,85289.0,0.0497005]
[1744499018653,0.28523652,85290.0,85289.0,0.0497005]
[1744499018864,0.03075498,85290.0,85289.0,0.0958005]
[1744499019014,0.009,85290.0,85289.0,0.09814505]
[1744499019227,0.13364,85306.0,85305.0,0.234452]
[1744499019404,0.13364,85306.0,85305.0,0.282452]
[1744499019617,0.13364,85306.0,85305.0,0.29617066]
[1744499020537,0.00014018,85307.0,85305.0,0.29617066]
[1744499020765,0.00014018,85307.0,85306.0,0.05034425]
[1744499020957,0.00014018,85307.0,85306.0,0.06392987]
[1744499021144,0.13364,85321.0,85318.0,0.234417]
[1744499021345,0.13364,85321.0,85320.0,0.234411]
[1744499021504,0.13364,85321.0,85320.0,0.283611]
[1744499021701,4.676e-05,85321.0,85320.0,0.2972182]
[1744499022107,4.676e-05,85321.0,85320.0,0.3452182]
[1744499022713,0.00104676,85321.0,85320.0,0.3452182]
[1744499023253,0.00304676,85321.0,85320.0,0.3452182]
[1744499023662,0.00104676,85321.0,85320.0,0.3452182]
[1744499023902,4.676e-05,85321.0,85320.0,0.3462182]
[1744499024198,0.00104676,85321.0,85320.0,0.3462182]
[1744499028815,0.00104676,85321.0,85320.0,0.2970182]
[1744499054173,0.00104676,85321.0,85320.0,0.0146072]
[1744499054413,0.00104676,85321.0,85320.0,0.001]
[1744499054414,0.47642915,85321.0,85320.0,0.001]
[1744499054625,0.52222915,85321.0,85320.0,0.001]
[1744499054832,0.47642915,85321.0,85320.0,0.001]
[1744499055532,0.61034915,85321.0,85320.0,0.001]
[1744499055739,0.60934915,85321.0,85320.0,0.001]
[1744499055940,0.61134915,85321.0,85320.0,0.001]
[1744499056325,0.011721,85314.0,85311.0,0.234435]
[1744499056501,0.12084154,85313.0,85311.0,0.234435]
[1744499056847,0.12084154,85313.0,85312.0,0.01353123]
[1744499057613,0.12184154,85313.0,85312.0,0.01353123]
[1744499058255,0.12284154,85313.0,85312.0,0.01553123]
[1744499059162,0.13472133,85313.0,85312.0,0.01553123]
[1744499060286,0.14358966,85313.0,85312.0,0.01553123]
[1744499061751,0.13170987,85313.0,85312.0,0.01553123]
[1744499062812,0.01086833,85313.0,85312.0,0.01553123]
[1744499063013,0.002,85313.0,85312.0,0.01553123]
[1744499094389,0.23643,85313.0,85312.0,0.01553123]
[1744499094791,0.23643,85313.0,85312.0,0.002]
[1744499096236,0.23643,85313.0,85312.0,0.015637]
[1744499097278,0.35727154,85313.0,85312.0,0.002]
[1744499098098,0.35727154,85313.0,85312.0,0.01564842]
[1744499098599,0.35727154,85313.0,85312.0,0.002]
[1744499099703,0.35727154,85313.0,85312.0,0.01564842]
[1744499107392,0.002,85313.0,85312.0,0.01564842]
[1744499108591,0.12284154,85313.0,85312.0,0.01564842]
[1744499108765,0.12284154,85313.0,85312.0,0.002]
[1744499109568,0.12284154,85313.0,85312.0,0.01563463]
[1744499114187,0.002,85313.0,85312.0,0.01563463]
[1744499121397,0.13556,85313.0,85312.0,0.01563463]
[1744499131425,0.13556,85313.0,85312.0,0.02384739]
[1744499137517,0.13556,85313.0,85312.0,0.002]
[1744499139529,0.13556,85313.0,85312.0,0.02384901]
[1744499142286,0.13556,85313.0,85312.0,0.002]
[1744499144146,0.13556,85313.0,85312.0,0.02384901]
[1744499144696,0.13556,85313.0,85312.0,0.002]
[1744499145959,0.13556,85313.0,85312.0,0.286233]
[1744499145960,0.002,85313.0,85312.0,0.286233]
[1744499146161,0.002,85313.0,85312.0,0.31917575]
[1744499146373,0.002,85313.0,85312.0,0.38703028]
[1744499146591,0.002,85313.0,85312.0,0.50787182]
[1744499146987,0.001,85313.0,85312.0,0.50787182]
[1744499147191,0.13356,85332.0,85320.0,0.284211]
[1744499147572,0.011719,85330.0,85320.0,0.30599149]
[1744499147776,0.13356,85332.0,85320.0,0.30599149]
[1744499147980,0.011719,85331.0,85320.0,0.30599149]
[1744499148384,0.00104676,85321.0,85320.0,0.30699149]
[1744499153248,0.00104676,85321.0,85320.0,0.30601185]
[1744499165641,7.6e-07,85321.0,85320.0,0.47645339]
[1744499165794,7.6e-07,85321.0,85320.0,0.81645339]
[1744499165997,7.6e-07,85321.0,85320.0,0.84927816]
[1744499166198,0.0008466,85341.0,85340.0,0.234356]
[1744499166398,0.00089337,85341.0,85340.0,0.234356]
[1744499166739,0.00089337,85341.0,85340.0,0.25595103]
[1744499167691,0.00189337,85341.0,85340.0,0.25895103]
[1744499168363,0.00189337,85341.0,85340.0,0.25995103]
[1744499186371,0.00189337,85341.0,85340.0,0.38079257]
[1744499188437,0.00189337,85341.0,85340.0,0.43009257]
[1744499190529,0.00189337,85341.0,85340.0,0.4629139]
[1744499190731,0.00189337,85341.0,85340.0,0.43009257]
[1744499196471,0.00189337,85341.0,85340.0,0.46293458]
[1744499217676,0.00189337,85341.0,85340.0,0.29279304]
[1744499218016,0.00189337,85341.0,85340.0,0.05843704]
[1744499218216,0.00189337,85341.0,85340.0,0.02559503]
[1744499218635,0.00189337,85341.0,85340.0,0.25995103]
[1744499234840,0.00189337,85341.0,85340.0,0.30855103]
[1744499235041,0.00189337,85341.0,85340.0,0.42939257]
[1744499235256,0.00189337,85341.0,85340.0,0.46224969]
[1744499235967,0.00189337,85341.0,85340.0,0.46124969]
[1744499236150,0.00089337,85341.0,85340.0,0.45824969]
[1744499236361,0.00189337,85341.0,85340.0,0.46724969]
[1744499237893,0.00189337,85341.0,85340.0,0.29780815]
[1744499238044,0.00189337,85341.0,85340.0,0.26495103]
[1744499238464,0.00189337,85341.0,85340.0,0.03059503]
[1744499239075,0.00189337,85341.0,85340.0,0.26495103]
[1744499239680,0.00189337,85341.0,85340.0,0.03059503]
[1744499240859,0.00189337,85341.0,85340.0,0.243356]
[1744499241261,0.00189337,85341.0,85340.0,0.26247781]
[1744499247227,0.00189337,85341.0,85340.0,0.30777781]
[1744499248146,0.00189337,85341.0,85340.0,0.26247781]
[1744499251298,0.00147975,85341.0,85340.0,0.26247781]
[1744499251805,0.00147975,85341.0,85340.0,0.25514161]
[1744499261433,0.00147975,85341.0,85340.0,0.42418315]
[1744499261590,0.00147975,85341.0,85340.0,0.47018315]
[1744499261795,0.00147975,85341.0,85340.0,0.50306612]
[1744499262533,0.00147975,85341.0,85340.0,0.84306612]
[1744499274086,0.00147975,85341.0,85340.0,0.79486612]
[1744499319523,0.00147975,85341.0,85340.0,0.74886612]
[1744499322236,0.00152975,85341.0,85340.0,0.74886612]
[1744499326728,0.00152975,85341.0,85340.0,0.40886612]
[1744499326920,0.05052975,85341.0,85340.0,0.28802458]
[1744499327979,0.05052975,85341.0,85340.0,0.25514161]
[1744499334034,0.00152975,85341.0,85340.0,0.25514161]
[1744499340093,0.00152975,85341.0,85340.0,0.37598315]
[1744499340298,0.00152975,85341.0,85340.0,0.4559458]
[1744499344586,0.0008464,85360.0,85340.0,0.4559458]
[1744499344587,0.03608935,85362.0,85361.0,0.234299]
[1744499344791,0.03608935,85362.0,85361.0,0.25344306]
[1744499345001,0.03655707,85362.0,85361.0,0.25344306]
[1744499345698,0.03955707,85362.0,85361.0,0.25344306]
[1744499347317,0.04455707,85362.0,85361.0,0.25444306]
[1744499350705,0.04455707,85362.0,85361.0,0.02014406]
[1744499354187,0.04455707,85362.0,85361.0,0.25444306]
[1744499355015,0.04455707,85362.0,85361.0,0.02014406]
[1744499358417,0.16539861,85362.0,85361.0,0.001]
[1744499363617,0.16539861,85362.0,85361.0,0.02016409]
[1744499365006,0.16539861,85362.0,85361.0,0.001]
[1744499366099,0.16539861,85362.0,85361.0,0.00084216]
[1744499366599,0.16539861,85362.0,85361.0,0.02000483]
[1744499368269,0.16539861,85362.0,85361.0,0.00084216]
[1744499370075,0.00846772,85362.0,85361.0,0.02000483]
[1744499370575,0.14170772,85362.0,85361.0,0.02000483]
[1744499380195,0.14170772,85362.0,85361.0,0.01999536]
[1744499397856,0.14170772,85362.0,85361.0,0.0191532]
[1744499398082,0.13370772,85362.0,85361.0,0.0191532]
[1744499398324,0.13670772,85362.0,85361.0,0.0201532]
[1744499398576,0.13870772,85362.0,85361.0,0.0201532]
[1744499400315,0.00546772,85362.0,85361.0,0.0692532]
[1744499400595,0.00546772,85362.0,85361.0,0.1152532]
[1744499400876,0.00546772,85362.0,85361.0,0.11891246]
[1744499401341,0.00546772,85362.0,85361.0,0.15181102]
[1744499401550,0.00246772,85362.0,85361.0,0.11791246]
[1744499401783,0.00046772,85362.0,85361.0,0.11791246]
[1744499404057,0.00046772,85362.0,85361.0,0.02281246]
[1744499404904,0.00046772,85362.0,85361.0,0.0191532]
[1744499409181,0.00046772,85362.0,85361.0,0.02281277]
[1744499422360,0.00046772,85362.0,85361.0,0.0191532]
[1744499424082,0.00046772,85362.0,85361.0,0.02281273]
[1744499425181,0.00046772,85362.0,85361.0,0.0191532]
[1744499427954,0.00046772,85362.0,85359.0,0.234302]
[1744499428092,0.00046772,85362.0,85361.0,0.01911823]
[1744499428308,0.00046772,85362.0,85360.0,0.01911499]
[1744499428521,0.00046772,85362.0,85361.0,0.01911823]
[1744499429269,0.00046772,85362.0,85359.0,0.235304]
[1744499429443,0.00046772,85362.0,85360.0,0.01911499]
[1744499430883,0.00046772,85362.0,85360.0,0.25341399]
[1744499433783,0.00046772,85362.0,85360.0,0.01911499]
[1744499434524,0.01218172,85362.0,85358.0,0.234304]
[1744499434734,0.00046772,85362.0,85361.0,0.02367133]
[1744499434900,0.011715,85359.0,85352.0,0.234322]
[1744499435115,0.011716,85352.0,85344.0,0.246062]
[1744499435485,0.011716,85352.0,85345.0,0.03291111]
[1744499435486,0.246039,85352.0,85345.0,0.03291111]
[1744499435720,0.011716,85350.0,85343.0,0.03291111]
[1744499435925,0.011716,85351.0,85347.0,0.234334]
[1744499436129,0.011715,85354.0,85348.0,0.234332]
[1744499436283,0.011716,85353.0,85350.0,0.234328]
[1744499437538,0.011716,85353.0,85350.0,0.235328]
[1744499438629,0.011716,85353.0,85350.0,0.236328]
[1744499439133,0.011716,85353.0,85350.0,0.002]
[1744499440118,0.234323,85352.0,85350.0,0.002]
[1744499440921,0.234323,85352.0,85350.0,0.001]
[1744499441316,0.234323,85352.0,85350.0,0.002]
[1744499442836,0.234323,85352.0,85350.0,0.001]
[1744499443031,0.234323,85352.0,85350.0,0.002]
[1744499444967,0.35516454,85352.0,85350.0,0.002]
[1744499445210,0.12084154,85351.0,85350.0,0.002]
[1744499446626,0.12084154,85351.0,85334.0,0.234371]
[1744499446627,0.234392,85327.0,85326.0,0.0004231]
[1744499446829,0.35523354,85327.0,85326.0,0.0004231]
[1744499447784,0.35623354,85327.0,85326.0,0.0024231]
[1744499448163,0.35523354,85327.0,85326.0,0.00046987]
[1744499449968,0.42360538,85327.0,85326.0,0.00046987]
[1744499450797,0.46910538,85327.0,85326.0,0.00046987]
[1744499451020,0.47410538,85327.0,85326.0,0.00146987]
[1744499451423,0.81210538,85327.0,85326.0,0.00146987]
[1744499451622,0.94526538,85327.0,85326.0,0.00146987]
[1744499451882,0.39964085,85326.0,85325.0,9.7e-07]
[1744499452070,0.64121087,85326.0,85325.0,9.7e-07]
[1744499453645,0.65121087,85326.0,85325.0,0.00100097]
[1744499454234,0.65421087,85326.0,85325.0,0.00100097]
[1744499454636,0.65121087,85326.0,85325.0,0.00100097]
[1744499454863,0.53048239,85326.0,85325.0,0.00100097]
[1744499455067,0.53548239,85326.0,85325.0,0.00100097]
[1744499456404,0.94898239,85326.0,85325.0,0.00100097]
[1744499460208,0.58896285,85316.0,85315.0,7e-08]
[1744499460434,0.63748185,85309.0,85308.0,1.7e-07]
[1744499460635,1.35442339,85309.0,85308.0,9.3e-07]
[1744499461184,1.22122339,85309.0,85308.0,9.3e-07]
[1744499461325,1.35442339,85309.0,85308.0,9.3e-07]
[1744499462138,1.36142339,85309.0,85308.0,9.3e-07]
[1744499462350,1.48215187,85309.0,85308.0,9.3e-07]
[1744499462545,1.47515187,85309.0,85308.0,9.3e-07]
[1744499462785,1.48615187,85309.0,85308.0,9.3e-07]
[1744499462990,0.58899085,85306.0,85305.0,3e-08]
[1744499463205,1.17183239,85306.0,85305.0,3e-08]
[1744499463380,1.34196087,85306.0,85305.0,3e-08]
[1744499464017,1.47516087,85306.0,85305.0,3e-08]
[1744499464219,1.48116087,85306.0,85305.0,3e-08]
[1744499464579,1.47516087,85306.0,85305.0,3e-08]
[1744499465396,1.48516087,85306.0,85305.0,3e-08]
[1744499465908,1.49216087,85306.0,85305.0,3e-08]
[1744499466090,1.48216087,85306.0,85305.0,3e-08]
[1744499466292,1.49316087,85306.0,85305.0,3e-08]
[1744499466593,1.37243239,85306.0,85305.0,3e-08]
[1744499468448,1.37248239,85306.0,85305.0,3e-08]
[1744499472376,1.37858381,85306.0,85305.0,3e-08]
[1744499476323,2.58550381,85306.0,85305.0,3e-08]
[1744499476526,2.60725738,85306.0,85305.0,3e-08]
[1744499476727,2.72798586,85306.0,85305.0,3e-08]
[1744499478034,2.72803586,85306.0,85305.0,3e-08]
[1744499478235,0.574488,85292.0,85291.0,0.0004231]
[1744499478429,0.70987039,85292.0,85291.0,0.0004231]
[1744499478634,0.73162396,85292.0,85291.0,0.0004231]
[1744499479033,0.74055449,85292.0,85291.0,0.0004231]
[1744499479552,0.74455449,85292.0,85291.0,0.0004231]
[1744499479991,1.16305449,85292.0,85291.0,0.0004231]
[1744499480371,1.16310449,85292.0,85291.0,0.0004231]
[1744499480707,1.16320449,85292.0,85291.0,0.0004231]
[1744499480909,1.16325449,85292.0,85291.0,0.0004231]
[1744499481118,1.16330449,85292.0,85291.0,0.0004231]
[1744499481629,1.16335449,85292.0,85291.0,0.0004231]
[1744499482060,1.29659449,85292.0,85291.0,0.0004231]
[1744499482179,1.29604135,85292.0,85291.0,0.0004231]
[1744499488107,1.29609135,85292.0,85291.0,0.0004231]
[1744499488402,1.29614135,85292.0,85291.0,0.0004231]
[1744499488545,1.41691983,85292.0,85291.0,0.0004231]
[1744499488756,1.41696983,85292.0,85291.0,0.0004231]
[1744499488963,1.29629135,85292.0,85291.0,0.0004231]
[1744499493067,1.29229135,85292.0,85291.0,0.0004231]
[1744499494243,1.28729135,85292.0,85291.0,0.0004231]
[1744499494808,1.29429135,85292.0,85291.0,0.0004231]
[1744499495221,1.30629135,85292.0,85291.0,0.0004231]
[1744499495426,1.39986255,85292.0,85291.0,0.0004231]
[1744499495626,1.39586255,85292.0,85291.0,0.0004231]
[1744499495782,1.40086255,85292.0,85291.0,0.0004231]
[1744499498882,1.30729135,85292.0,85291.0,0.0004231]
[1744499505406,1.30729135,85292.0,85291.0,1e-07]
[1744499506485,1.30229135,85292.0,85291.0,1e-07]
[1744499507282,1.30225135,85292.0,85291.0,1e-07]
[1744499508037,1.28725135,85292.0,85291.0,1e-07]
[1744499508373,1.42597983,85292.0,85291.0,1e-07]
[1744499509888,2.63305983,85292.0,85291.0,1e-07]
[1744499515324,2.64305983,85292.0,85291.0,1e-07]
[1744499516984,2.64915647,85292.0,85291.0,1e-07]
[1744499517178,2.63815647,85292.0,85291.0,1e-07]
[1744499517515,2.64315647,85292.0,85291.0,1e-07]
[1744499517766,2.65015647,85292.0,85291.0,1e-07]
[1744499518707,0.58904285,85287.0,85275.0,0.000423]
[1744499518927,1.12338439,85287.0,85275.0,0.000423]
[1744499519155,1.14513796,85287.0,85275.0,0.000423]
[1744499519368,1.26586644,85287.0,85275.0,0.000423]
[1744499519715,1.26586644,85287.0,85285.0,2e-07]
[1744499519716,0.35454085,85286.0,85285.0,2e-07]
[1744499519921,0.47538239,85286.0,85285.0,2e-07]
[1744499520346,0.49713596,85286.0,85285.0,2e-07]
[1744499520595,0.61786444,85286.0,85285.0,2e-07]
[1744499521026,0.62886444,85286.0,85285.0,2e-07]
[1744499521539,0.01454085,85283.0,85281.0,2e-07]
[1744499521724,0.47538239,85282.0,85281.0,2e-07]
[1744499522101,0.49713596,85282.0,85281.0,2e-07]
[1744499522674,0.49713596,85282.0,85281.0,0.00014038]
[1744499523025,0.63037596,85282.0,85281.0,0.00014038]
[1744499524024,1.04387596,85282.0,85281.0,0.00014038]
[1744499524224,1.05387596,85282.0,85281.0,0.00014038]
[1744499524477,1.07243494,85282.0,85281.0,0.00014038]
[1744499524821,1.19316342,85282.0,85281.0,0.00014038]
[1744499525891,1.07243494,85282.0,85281.0,0.00014038]
[1744499530308,1.08336241,85282.0,85281.0,0.00014038]
[1744499532269,1.08332241,85282.0,85281.0,0.00014038]
[1744499533946,1.08332241,85282.0,85281.0,3.8e-07]
[1744499534710,1.07632241,85282.0,85281.0,3.8e-07]
[1744499534918,1.19705089,85282.0,85281.0,3.8e-07]
[1744499535122,1.20405089,85282.0,85281.0,3.8e-07]
[1744499535983,1.08332241,85282.0,85281.0,3.8e-07]
[1744499536177,1.06156884,85282.0,85281.0,3.8e-07]
[1744499536501,1.07341516,85282.0,85281.0,3.8e-07]
[1744499536695,1.08441516,85282.0,85281.0,3.8e-07]
[1744499537248,1.09551161,85282.0,85281.0,3.8e-07]
[1744499537621,1.22324009,85282.0,85281.0,3.8e-07]
[1744499542697,0.01454085,85277.0,85275.0,3.8e-07]
[1744499542892,0.47538239,85276.0,85275.0,3.8e-07]
[1744499543320,0.49722871,85276.0,85275.0,3.8e-07]
[1744499543721,0.58907585,85275.0,85274.0,4.8e-07]
[1744499543921,0.86341966,85275.0,85274.0,4.8e-07]
[1744499544439,0.58908685,85271.0,85270.0,6.8e-07]
[1744499544754,0.74270218,85271.0,85270.0,6.8e-07]
[1744499545120,0.87594218,85271.0,85270.0,0.09340068]
[1744499545526,0.74270218,85271.0,85270.0,0.09340068]
[1744499545755,0.87594218,85271.0,85270.0,0.09340068]
[1744499545944,0.72816133,85271.0,85270.0,0.09340068]
[1744499546167,0.86140133,85271.0,85270.0,0.09340068]
[1744499546408,0.85047386,85271.0,85270.0,0.09340068]
[1744499546580,0.85947386,85271.0,85270.0,0.09340068]
[1744499547217,0.87347386,85271.0,85270.0,0.09340068]
[1744499547455,0.93741195,85271.0,85270.0,6.8e-07]
[1744499547602,0.93041195,85271.0,85270.0,6.8e-07]
[1744499547989,0.93541195,85271.0,85270.0,6.8e-07]
[1744499548182,0.93485216,85271.0,85270.0,6.8e-07]
[1744499548407,0.92985216,85271.0,85270.0,6.8e-07]
[1744499548810,0.93585216,85271.0,85270.0,6.8e-07]
[1744499548988,0.91985216,85271.0,85270.0,6.8e-07]
[1744499549219,0.92785216,85271.0,85270.0,6.8e-07]
[1744499549735,0.93985216,85271.0,85270.0,6.8e-07]
[1744499549943,0.80061216,85271.0,85270.0,6.8e-07]
[1744499550133,0.94085216,85271.0,85270.0,6.8e-07]
[1744499550335,1.35435216,85271.0,85270.0,6.8e-07]
[1744499550738,1.34735216,85271.0,85270.0,6.8e-07]
[1744499550933,1.35535216,85271.0,85270.0,6.8e-07]
[1744499554411,0.58793357,85265.0,85264.0,7.8e-07]
[1744499554596,1.24300359,85265.0,85264.0,1.7e-07]
[1744499554992,1.26484991,85265.0,85264.0,1.7e-07]
[1744499555166,1.14412143,85265.0,85264.0,1.7e-07]
[1744499556130,1.15412143,85265.0,85264.0,1.7e-07]
[1744499556326,1.16012143,85265.0,85264.0,1.7e-07]
[1744499559332,2.36760143,85265.0,85264.0,1.7e-07]
[1744499560455,2.31760143,85265.0,85264.0,1.7e-07]
[1744499560675,2.32639128,85265.0,85264.0,1.7e-07]
[1744499561504,2.40819702,85265.0,85264.0,1.7e-07]
[1744499561951,2.32639128,85265.0,85264.0,1.7e-07]
[1744499562138,2.32038804,85265.0,85264.0,1.7e-07]
[1744499562278,2.32738804,85265.0,85264.0,1.7e-07]
[1744499562921,2.31738804,85265.0,85264.0,1.7e-07]
[1744499563300,2.32838804,85265.0,85264.0,1.7e-07]
[1744499563855,0.35454085,85257.0,85256.0,6.7e-07]
[1744499564004,0.574612,85247.0,85246.0,1.7e-07]
[1744499564203,0.58684343,85236.0,85229.0,0.0004231]
[1744499564406,1.25438497,85236.0,85229.0,0.0004231]
[1744499564789,1.27622805,85236.0,85229.0,0.0004231]
[1744499564987,1.28776607,85236.0,85229.0,0.0004231]
[1744499565824,1.29276607,85236.0,85229.0,0.0004231]
[1744499566203,1.29576607,85236.0,85229.0,0.0004231]
[1744499567123,1.3044894,85236.0,85235.0,0.0469231]
[1744499567944,1.3044894,85236.0,85235.0,0.0944231]
[1744499568560,1.1712894,85236.0,85235.0,0.0944231]
[1744499568717,1.3045294,85236.0,85235.0,0.0944231]
[1744499568917,1.3045294,85236.0,85235.0,0.0004231]
[1744499572658,1.3045294,85236.0,85235.0,0.0499231]
[1744499573207,1.1712894,85236.0,85235.0,0.0499231]
[1744499573417,1.3045294,85236.0,85235.0,0.0499231]
[1744499573627,1.28998855,85236.0,85235.0,0.0499231]
[1744499579503,1.26814547,85236.0,85235.0,0.0499231]
[1744499580663,1.26814547,85236.0,85235.0,0.0974231]
[1744499582436,1.28995729,85236.0,85235.0,0.0974231]
[1744499589627,1.15671729,85236.0,85235.0,0.0974231]
[1744499589779,1.28991729,85236.0,85235.0,0.0974231]
[1744499591426,1.15671729,85236.0,85235.0,0.0974231]
[1744499591641,1.28991729,85236.0,85235.0,0.0974231]
[1744499593451,1.28991729,85236.0,85235.0,0.0499231]
[1744499594383,1.28991729,85236.0,85235.0,0.0493331]
[1744499595460,1.26810547,85236.0,85235.0,0.0493331]
[1744499602735,1.13490547,85236.0,85235.0,0.0493331]
[1744499602910,1.26814547,85236.0,85235.0,0.0493331]
[1744499603582,0.574659,85230.0,85229.0,0.0004231]
[1744499603734,0.574659,85230.0,85229.0,0.00088981]
[1744499604119,0.574659,85230.0,85229.0,0.04708981]
[1744499604868,0.576659,85230.0,85229.0,0.04708981]
[1744499605074,0.578659,85230.0,85229.0,0.04708981]
[1744499605677,0.711899,85230.0,85229.0,0.04708981]
[1744499613230,0.13724,85230.0,85229.0,0.04708981]
[1744499613549,0.13724,85230.0,85229.0,0.07537555]
[1744499614194,0.13668078,85230.0,85229.0,0.07537555]
[1744499614390,0.00344078,85230.0,85229.0,0.07537555]
[1744499614759,0.13668078,85230.0,85229.0,0.07537555]
[1744499615033,0.00344078,85230.0,85229.0,0.07537555]
[1744499615234,0.00344078,85230.0,85229.0,0.06830411]
[1744499618952,0.00344078,85230.0,85229.0,0.07532154]
[1744499619155,0.00344078,85230.0,85229.0,0.06826361]
[1744499619451,0.00344078,85230.0,85229.0,0.07532154]
[1744499620267,0.00344078,85230.0,85229.0,0.06826361]
[1744499620438,0.00344078,85230.0,85229.0,0.07532154]
[1744499622615,0.00344078,85230.0,85229.0,0.06823402]
[1744499623030,0.00344078,85230.0,85229.0,0.07528209]
[1744499623466,0.00344078,85230.0,85229.0,0.06823402]
[1744499623965,0.00344078,85230.0,85229.0,0.07528209]
[1744499626787,0.00344078,85230.0,85229.0,0.06823402]
[1744499629530,0.00344078,85230.0,85229.0,0.07524967]
[1744499629706,0.00344078,85230.0,85229.0,0.06820971]
[1744499630506,0.00344078,85230.0,85229.0,0.07524967]
[1744499630944,0.00344078,85230.0,85229.0,0.06820971]
[1744499631170,0.00344078,85230.0,85229.0,0.07524967]
[1744499631344,0.00344078,85230.0,85229.0,0.06820971]
[1744499631546,0.00344078,85230.0,85229.0,0.07524967]
[1744499634184,0.00344078,85230.0,85229.0,0.02904967]
[1744499634390,0.00344078,85230.0,85229.0,0.00088981]
[1744499638416,0.12428232,85230.0,85229.0,0.00088981]
[1744499655181,0.00344078,85230.0,85229.0,0.00088981]
[1744499658134,0.00344078,85230.0,85229.0,0.02903117]
[1744499658310,0.00344078,85230.0,85229.0,0.00088981]
[1744499658515,0.00344078,85230.0,85229.0,0.02903117]
[1744499659721,0.00344078,85230.0,85229.0,0.00088981]
[1744499660373,0.00344078,85230.0,85229.0,0.02902623]
[1744499660570,0.00344078,85230.0,85229.0,0.00088981]
[1744499661033,0.00344078,85230.0,85229.0,0.02902623]
[1744499662761,0.00344078,85230.0,85229.0,0.00088981]
[1744499663296,0.13660078,85230.0,85229.0,0.00088981]
[1744499663653,0.13660078,85230.0,85229.0,0.02902623]
[1744499664415,0.13660078,85230.0,85229.0,0.00088981]
[1744499670895,0.246394,85229.0,85226.0,0.04158981]
[1744499671739,0.234667,85227.0,85226.0,0.04158981]
[1744499672979,0.235667,85227.0,85226.0,0.069713]
[1744499673188,0.236667,85227.0,85226.0,0.02812319]
[1744499673520,0.234678,85223.0,85222.0,0.0004231]
[1744499673719,0.234678,85223.0,85222.0,0.02852865]
[1744499674151,0.234678,85223.0,85222.0,0.02352865]
[1744499675282,0.235678,85223.0,85222.0,0.02352865]
[1744499680657,0.23511865,85223.0,85222.0,0.02352865]
[1744499682111,0.23511865,85223.0,85221.0,0.0147911]
[1744499682462,0.23511865,85223.0,85222.0,0.02734063]
[1744499682901,0.23511865,85223.0,85221.0,0.0147911]
[1744499683157,0.23411865,85223.0,85221.0,0.0147911]
[1744499683318,0.23411865,85223.0,85222.0,0.02734063]
[1744499683522,0.23511865,85223.0,85221.0,0.0147911]
[1744499683727,0.23511865,85223.0,85222.0,0.02734063]
[1744499683895,0.23511865,85223.0,85221.0,0.0147911]
[1744499684107,0.23511865,85223.0,85222.0,0.02734063]
[1744499684303,0.23411865,85223.0,85221.0,0.0147911]
[1744499684552,0.23511865,85223.0,85222.0,0.02734063]
[1744499685066,0.23511865,85223.0,85221.0,0.0147911]
[1744499685374,0.23511865,85223.0,85222.0,0.02734063]
[1744499685887,0.23411865,85223.0,85221.0,0.0147911]
[1744499686072,0.23511865,85223.0,85221.0,0.0147911]
[1744499686251,0.23511865,85223.0,85222.0,0.02734063]
[1744499686769,0.23611865,85223.0,85221.0,0.0147911]
[1744499686974,0.23511865,85223.0,85221.0,0.0147911]
[1744499687174,0.23611865,85223.0,85222.0,0.02734564]
[1744499687334,0.23411865,85223.0,85222.0,0.02734564]
[1744499687975,0.23511865,85223.0,85222.0,0.02734564]
[1744499691105,0.23511865,85223.0,85221.0,0.0147911]
[1744499691305,0.23511865,85223.0,85222.0,0.02734793]
[1744499691847,0.23511865,85223.0,85221.0,0.0147911]
[1744499692247,0.23511865,85223.0,85222.0,0.02734943]
[1744499692654,0.23411865,85223.0,85221.0,0.0147911]
[1744499693165,0.23511865,85223.0,85222.0,0.02734763]
[1744499693519,0.23511865,85223.0,85221.0,0.0147911]
[1744499693725,0.001,85223.0,85222.0,0.02734763]
[1744499693959,0.144893,85226.0,85223.0,0.0483]
[1744499694262,0.13316,85226.0,85224.0,0.234674]
[1744499694443,0.144893,85226.0,85223.0,0.0483]
[1744499694645,0.144893,85226.0,85225.0,0.02736086]
[1744499694960,0.379565,85226.0,85225.0,0.02736527]
[1744499695163,0.379565,85226.0,85223.0,0.0483]
[1744499695363,0.379565,85226.0,85225.0,0.02736527]
[1744499695669,0.379565,85226.0,85223.0,0.0483]
[1744499695824,0.379565,85226.0,85225.0,0.02736527]
[1744499696026,0.379565,85226.0,85224.0,0.02736086]
[1744499696263,0.379565,85226.0,85225.0,0.02736527]
[1744499696429,0.380565,85226.0,85225.0,0.02736527]
[1744499696629,0.380565,85226.0,85223.0,0.0483]
[1744499696984,0.382565,85226.0,85224.0,0.02736086]
[1744499697344,0.381565,85226.0,85224.0,0.02736086]
[1744499697546,0.382565,85226.0,85224.0,0.02736086]
[1744499697745,0.380565,85226.0,85224.0,0.02736086]
[1744499698775,0.379565,85226.0,85224.0,0.02736086]
[1744499698954,0.379565,85226.0,85224.0,0.02569031]